bitfinex-derivatives/quotes_BNBF0:USTF0_20250326
["timestamp","ask_amount","ask_price","bid_price","bid_amount"]
[1742997823353,2.58296615,627.66,626.07,0.26263806]
[1742997823553,0.318654,627.64,626.08,0.26263806]
[1742997823850,2.58296615,627.63,626.09,0.26263806]
[1742997824050,0.31866923,627.61,626.07,0.26263806]
[1742997824252,2.58296615,627.6,626.08,0.26263806]
[1742997824447,11.91356339,632.49,626.06,0.31945819]
[1742997824448,0.31868447,627.58,626.07,0.26263806]
[1742997824647,2.28990725,627.57,626.08,0.26270498]
[1742997824850,0.3186997,627.55,626.07,0.26270498]
[1742997825048,2.58303388,627.54,626.08,0.26270498]
[1742997825253,2.58303388,627.53,626.09,0.26270498]
[1742997825449,2.58303388,627.52,626.07,0.26270498]
[1742997825651,2.58303388,627.51,626.08,0.26270498]
[1742997825856,2.58303388,627.5,626.09,0.26270498]
[1742997826055,0.31873525,627.48,626.07,0.26270498]
[1742997826356,2.58303388,627.47,626.07,0.26270498]
[1742997826552,0.31875049,627.45,626.07,0.26270498]
[1742997826752,2.58303388,627.44,626.06,0.31945819]
[1742997826955,0.31876573,627.42,626.06,0.31945819]
[1742997827151,2.58303388,627.41,625.86,0.27767914]
[1742997827452,0.31878098,627.39,625.87,0.26271413]
[1742997827654,2.29181377,627.38,625.86,0.27767914]
[1742997827850,0.31879622,627.36,625.9,1.17993281]
[1742997828055,2.5849505,627.35,625.91,0.26271474]
[1742997828256,0.31881147,627.33,625.91,0.26271474]
[1742997828458,2.5849505,627.32,625.91,0.26271474]
[1742997828652,0.31882671,627.3,625.91,0.26271474]
[1742997828856,2.5849505,627.29,625.91,0.26271474]
[1742997829050,0.31882671,627.3,625.91,0.26271474]
[1742997829051,0.31884196,627.27,625.91,0.26271474]
[1742997829253,2.29181377,627.26,625.92,0.2627187]
[1742997829452,2.29181377,627.25,625.9,1.17993281]
[1742997829658,0.31886229,627.23,625.9,1.17993281]
[1742997829857,2.29181377,627.22,625.9,1.17993281]
[1742997830059,2.29181377,627.21,625.9,1.17993281]
[1742997830260,2.29181377,627.2,625.9,1.17993281]
[1742997830461,0.31888771,627.18,625.9,1.17993281]
[1742997830660,2.29181377,627.17,625.9,1.17993281]
[1742997830855,2.29181377,627.16,625.9,1.17993281]
[1742997831058,2.29181377,627.16,625.74,0.2777678]
[1742997831059,0.31890805,627.14,625.99,1.17993281]
[1742997831259,2.29181377,627.13,625.99,1.17993281]
[1742997831456,2.29181377,627.12,625.99,1.17993281]
[1742997831762,0.31890805,627.14,625.99,1.17993281]
[1742997832760,2.57368943,627.13,625.99,1.17993281]
[1742997832962,2.61484539,627.12,625.99,1.17993281]
[1742997833157,2.61485048,627.11,625.99,1.17993281]
[1742997833363,2.29592717,627.1,625.86,1.17993281]
[1742997833567,2.61486065,627.09,625.87,0.26275552]
[1742997833763,2.61531639,627.08,625.87,0.26275552]
[1742997833961,1.20566634,627.07,625.87,0.26275552]
[1742997834265,1.20566634,627.06,625.87,0.26275552]
[1742997834466,1.20566634,627.05,625.87,0.26275552]
[1742997834661,1.52462525,627.04,625.87,0.26275552]
[1742997834864,1.52463034,627.03,625.87,0.26275552]
[1742997835063,1.52463543,627.02,625.87,0.26275552]
[1742997835265,1.20566634,627.01,625.87,0.26275552]
[1742997835466,1.20566634,627.0,625.87,0.26275552]
[1742997835762,1.20566634,626.99,625.87,0.26275552]
[1742997835965,0.27776669,627.0,625.96,1.17993281]
[1742997835966,1.20566634,626.98,625.96,1.17993281]
[1742997836165,1.20566634,626.97,625.97,0.26275552]
[1742997836365,1.20566634,626.96,625.97,0.26275552]
[1742997836565,1.20566634,626.95,625.97,0.26275552]
[1742997836769,1.20566634,626.94,625.98,0.26271164]
[1742997836968,1.20566634,626.93,625.97,0.26271164]
[1742997837164,1.20566634,626.92,625.98,0.26271164]
[1742997837370,1.20566634,626.91,625.99,1.44264445]
[1742997837571,1.20566634,626.9,626.0,0.26271164]
[1742997838070,0.27776669,627.0,626.0,0.26271164]
[1742997838266,0.31898435,626.99,626.01,0.26274674]
[1742997838463,0.31898435,626.99,626.0,0.26274674]
[1742997838664,0.31898435,626.99,625.99,1.17993281]
[1742997838665,0.59675991,626.99,626.01,0.26274674]
[1742997838870,0.59675991,626.99,626.02,0.26274674]
[1742997839070,0.59675991,626.99,626.0,0.26274674]
[1742997839271,0.59675991,626.99,626.01,0.26274674]
[1742997839470,0.59675991,626.99,626.0,0.26274674]
[1742997839671,0.59675991,626.99,626.01,0.26274674]
[1742997839974,1.20774393,626.98,626.02,0.26274674]
[1742997840177,1.52673845,626.97,626.0,0.26274674]
[1742997840477,1.52674354,626.96,626.01,0.26274674]
[1742997840675,1.52674863,626.95,626.0,0.26274674]
[1742997840974,1.52674863,626.95,625.99,1.17993281]
[1742997840975,1.52675372,626.94,626.01,0.26274674]
[1742997841175,1.20774393,626.93,626.02,0.26274674]
[1742997841474,1.20774393,626.93,625.71,1.17993281]
[1742997841475,1.20790829,626.92,626.03,0.26274674]
[1742997841675,1.20790829,626.91,626.04,0.26274674]
[1742997841974,1.20790829,626.9,626.05,0.26274674]
[1742997842174,1.20790829,626.89,625.96,0.26274674]
[1742997842474,1.20790829,626.88,625.97,0.26275055]
[1742997842674,1.20790829,626.87,625.98,0.26275055]
[1742997842875,1.20790829,626.86,625.99,0.26275055]
[1742997843078,1.20790829,626.85,625.96,0.26275055]
[1742997843275,1.20790829,626.84,625.97,0.26275055]
[1742997843476,1.20790829,626.83,625.96,0.26275055]
[1742997843672,1.20790829,626.82,625.97,0.26275055]
[1742997843879,1.20790829,626.81,625.97,0.26275055]
[1742997844076,1.20790829,626.8,625.95,1.17993281]
[1742997844279,1.20790829,626.79,625.95,1.17993281]
[1742997844477,1.20790829,626.78,625.95,1.17993281]
[1742997844778,1.20790829,626.77,626.02,1.17993281]
[1742997844974,1.20790829,626.76,626.02,1.17993281]
[1742997845190,1.20790829,626.75,626.02,1.17993281]
[1742997845390,1.20790829,626.74,626.02,1.17993281]
[1742997845584,1.20790829,626.73,626.02,1.17993281]
[1742997845781,1.20790829,626.72,626.02,1.17993281]
[1742997845988,1.20988879,626.71,626.02,1.17993281]
[1742997846184,2.10590806,626.7,626.02,1.17993281]
[1742997846486,1.20988879,626.69,626.02,1.17993281]
[1742997846782,1.20988879,626.68,626.02,1.17993281]
[1742997846985,0.89601927,626.69,625.55,0.27783877]
[1742997846986,1.20988879,626.67,625.55,0.27783877]
[1742997847282,1.20988879,626.66,625.56,0.26284353]
[1742997847485,1.20988879,626.65,625.54,0.26284353]
[1742997847680,1.20988879,626.64,625.55,0.26284353]
[1742997847985,2.10590806,626.63,625.56,0.26284353]
[1742997848282,2.10590806,626.62,625.57,0.26284353]
[1742997848476,1.20988879,626.61,625.54,0.26284353]
[1742997848681,1.20988879,626.6,625.55,0.26284353]
[1742997848881,1.20988879,626.59,625.56,0.26284353]
[1742997849182,2.10590806,626.58,625.57,0.26284353]
[1742997849492,1.20988879,626.57,625.58,0.26284353]
[1742997849679,1.20988879,626.56,625.59,0.26284353]
[1742997849986,1.20988879,626.56,625.45,0.2779364]
[1742997849987,1.20988879,626.55,625.64,1.17993281]
[1742997850184,1.20988879,626.54,625.65,0.26285763]
[1742997850483,1.20988879,626.53,625.65,0.26285763]
[1742997850679,1.20988879,626.52,625.65,0.26285763]
[1742997850893,1.20988879,626.51,625.65,0.26285763]
[1742997851088,1.20988879,626.5,625.65,0.26285763]
[1742997851283,1.20988879,626.49,625.65,0.26285763]
[1742997851485,1.20988879,626.48,625.65,0.26285763]
[1742997851679,1.20988879,626.47,625.64,1.17993281]
[1742997851979,1.20988879,626.46,625.65,0.26284049]
[1742997852184,2.10590806,626.45,625.65,0.26284049]
[1742997852386,1.20988879,626.44,625.65,0.26284049]
[1742997852579,1.20988879,626.43,625.66,0.26284049]
[1742997852779,0.31900979,626.94,625.63,1.17993281]
[1742997852780,2.10590806,626.42,625.67,0.26284049]
[1742997852979,2.10590806,626.42,625.68,0.26284049]
[1742997852980,1.20988879,626.41,625.68,0.26284049]
[1742997853179,1.20988879,626.4,625.68,0.26284049]
[1742997853386,2.10576647,626.39,625.69,0.26284049]
[1742997853586,1.2097472,626.38,625.64,0.26284049]
[1742997853778,2.10576647,626.37,625.65,0.26284049]
[1742997854082,1.2097472,626.36,625.66,0.26284049]
[1742997854384,0.89601927,626.37,625.67,0.26284049]
[1742997854685,0.89601927,626.49,625.68,0.26284049]
[1742997854880,1.20965559,626.48,625.65,0.26284049]
[1742997855084,2.10567486,626.47,625.66,0.26284049]
[1742997855386,1.20965559,626.46,625.67,0.26284049]
[1742997855685,2.10567486,626.45,625.68,0.26284049]
[1742997855984,2.10567486,626.44,625.69,0.26284049]
[1742997856185,1.20965559,626.43,625.65,0.26284049]
[1742997856487,1.20965559,626.42,625.66,1.4427733]
[1742997856686,1.20965559,626.41,625.67,0.26284049]
[1742997856882,0.686,626.41,625.67,0.26284049]
[1742997857885,0.686,626.41,625.68,0.26283536]
[1742997858081,0.686,626.41,625.67,0.26283536]
[1742997858282,0.686,626.41,625.68,0.26283536]
[1742997858487,0.686,626.41,625.67,0.26283536]
[1742997858683,0.686,626.41,625.68,0.26283536]
[1742997858887,0.686,626.41,625.69,1.17993281]
[1742997859081,0.686,626.41,625.7,0.26283536]
[1742997859482,0.686,626.41,625.71,0.26277753]
[1742997859687,0.686,626.41,625.7,0.26277753]
[1742997859989,0.686,626.41,625.71,0.26277753]
[1742997860184,0.686,626.41,625.7,0.26277753]
[1742997860389,0.686,626.41,625.71,0.26277753]
[1742997860585,0.686,626.41,625.7,0.26277753]
[1742997860889,0.686,626.41,625.69,1.17993281]
[1742997861091,0.686,626.41,625.7,0.26281182]
[1742997861391,0.686,626.41,625.77,1.17993281]
[1742997864190,0.686,626.41,625.68,1.17993281]
[1742997864386,0.686,626.41,625.69,0.26283202]
[1742997864784,0.686,626.41,625.68,1.17993281]
[1742997865990,0.686,626.41,625.64,1.17993281]
[1742997866187,0.686,626.41,625.65,0.26282718]
[1742997868588,0.686,626.41,625.76,1.17993281]
[1742997868791,0.686,626.41,625.77,0.26281178]
[1742997869695,0.686,626.41,625.76,1.17993281]
[1742997870094,0.686,626.41,625.77,0.26282153]
[1742997870394,0.686,626.41,625.76,1.17993281]
[1742997870589,0.686,626.41,625.73,1.17993281]
[1742997870794,0.686,626.41,625.74,0.26282197]
[1742997871095,0.686,626.41,625.73,1.17993281]
[1742997872795,0.686,626.41,625.67,1.17993281]
[1742997872996,0.686,626.41,625.68,0.26284349]
[1742997873297,0.686,626.41,625.67,1.17993281]
[1742997873490,0.686,626.41,625.68,0.26284619]
[1742997875096,0.686,626.41,625.69,0.26284963]
[1742997875293,0.686,626.41,625.75,1.17993281]
[1742997875498,0.686,626.41,625.76,0.26284963]
[1742997877202,0.686,626.41,625.76,1.44278244]
[1742997877396,0.686,626.41,625.77,0.26284963]
[1742997877797,0.27793529,626.45,625.77,0.26284963]
[1742997878000,0.27793529,626.45,625.76,1.17993281]
[1742997879402,0.74693529,626.45,625.76,1.17993281]
[1742997880104,0.74693529,626.45,625.7,1.17993281]
[1742997880403,1.42493529,626.45,625.7,1.17993281]
[1742997882000,1.42493529,626.45,625.49,1.17993281]
[1742997882205,1.42493529,626.45,625.5,0.2629526]
[1742997882398,1.42493529,626.45,625.48,1.17993281]
[1742997882604,1.42493529,626.45,625.49,0.26295255]
[1742997883306,1.147,626.45,625.49,0.26295255]
[1742997883702,0.27799968,626.44,625.49,0.26295255]
[1742997884403,0.27799968,626.44,625.5,0.26294235]
[1742997884604,0.27799968,626.44,625.51,0.26294235]
[1742997884807,0.27799968,626.44,625.52,1.17993281]
[1742997885002,0.27799968,626.44,625.53,0.26294235]
[1742997885404,0.27799968,626.44,625.52,1.17993281]
[1742997886310,1.147,626.45,625.52,1.17993281]
[1742997886705,1.147,626.45,625.46,0.31976465]
[1742997886706,0.27798636,626.43,625.46,0.31976465]
[1742997889313,1.147,626.45,625.46,0.31976465]
[1742997889715,0.2780019,626.42,625.46,0.31976465]
[1742997895320,1.147,626.45,625.46,0.31976465]
[1742997895619,0.2780019,626.41,625.46,0.31976465]
[1742997896523,1.20991061,626.4,625.46,0.31976465]
[1742997896723,1.20991061,626.39,625.46,0.31976465]
[1742997896918,1.20991061,626.38,625.46,0.31976465]
[1742997897117,1.20991061,626.37,625.46,0.31976465]
[1742997897317,1.20991061,626.36,625.46,0.31976465]
[1742997897515,1.20991061,626.35,625.46,0.31976465]
[1742997897722,1.20991061,626.34,625.46,0.31976465]
[1742997897923,1.20991061,626.33,625.46,0.31976465]
[1742997898224,1.20991061,626.32,625.46,0.31976465]
[1742997898421,1.20991061,626.31,625.46,0.31976465]
[1742997898624,1.20991061,626.3,625.46,0.31976465]
[1742997898823,1.20991061,626.29,625.47,0.26293271]
[1742997899124,1.20991061,626.28,625.47,0.26293271]
[1742997899323,1.20991061,626.27,625.47,0.26293271]
[1742997899625,1.20991061,626.26,625.47,0.26293271]
[1742997899825,1.20991061,626.25,625.47,0.26293271]
[1742997900026,1.20991061,626.24,625.48,0.2629236]
[1742997900221,1.20991061,626.24,625.46,0.31976465]
[1742997900222,1.20991061,626.23,625.47,0.2629236]
[1742997900425,0.89989176,626.24,625.48,0.2629236]
[1742997900630,0.89989176,626.24,625.49,0.31974931]
[1742997900827,0.469,626.45,625.5,0.2629236]
[1742997901022,1.21064806,626.44,625.5,0.2629236]
[1742997901226,1.21064806,626.43,625.51,0.31973909]
[1742997901527,1.21064806,626.42,625.52,0.2629236]
[1742997901728,1.21064806,626.41,625.62,1.17993281]
[1742997901927,1.21064806,626.4,625.63,0.2629236]
[1742997902225,2.11105969,626.39,625.63,0.2629236]
[1742997902427,1.21064806,626.38,625.63,0.2629236]
[1742997902625,2.11105969,626.37,625.63,0.2629236]
[1742997902826,1.21064806,626.36,625.63,0.2629236]
[1742997903022,1.21064806,626.35,625.7,1.17993281]
[1742997903227,1.21064806,626.34,625.71,0.2629236]
[1742997903423,0.90041163,626.35,625.71,0.2629236]
[1742997903626,1.21146923,626.34,625.71,0.2629236]
[1742997903825,0.90041163,626.35,625.71,0.2629236]
[1742997903826,0.647,626.37,625.71,0.2629236]
[1742997904022,1.21150683,626.36,625.71,0.2629236]
[1742997904226,1.21173518,626.35,625.72,0.26284283]
[1742997904428,1.21173518,626.34,625.71,0.26284283]
[1742997904629,1.21173518,626.33,625.72,0.26284283]
[1742997904823,1.21173518,626.32,625.73,0.26284283]
[1742997905024,1.21173518,626.31,625.71,0.26284283]
[1742997905226,2.11284287,626.3,625.72,0.26284283]
[1742997905428,1.21173518,626.29,625.72,0.26284283]
[1742997905625,2.11284287,626.28,625.73,0.26284283]
[1742997905826,1.21173518,626.27,625.71,0.26284283]
[1742997906029,1.21173518,626.27,625.7,1.17993281]
[1742997906030,1.21173518,626.26,625.75,1.17993281]
[1742997906233,1.21173518,626.25,625.76,0.26289191]
[1742997906429,1.21173518,626.24,625.76,0.26289191]
[1742997906632,1.21173518,626.23,625.76,0.26289191]
[1742997906836,0.90110769,626.23,625.76,0.26289191]
[1742997907232,1.21152452,626.22,625.76,0.26289191]
[1742997907433,1.21152452,626.21,625.76,0.26289191]
[1742997907634,1.21152452,626.2,625.7,1.17993281]
[1742997907830,0.90107627,626.2,625.7,1.17993281]
[1742997908038,0.647,626.37,625.7,1.17993281]
[1742997908337,2.11257395,626.36,625.7,1.17993281]
[1742997908538,1.21150992,626.35,625.7,1.17993281]
[1742997908738,1.21150992,626.34,625.7,1.17993281]
[1742997908937,1.21150517,626.33,625.7,1.17993281]
[1742997909138,1.21150517,626.32,625.7,1.17993281]
[1742997909338,1.21150517,626.31,625.7,1.17993281]
[1742997909538,1.21150517,626.3,625.7,1.17993281]
[1742997909731,1.21150517,626.29,625.7,1.17993281]
[1742997909935,0.90106403,626.31,625.7,1.17993281]
[1742997909936,2.1125692,626.28,625.7,1.17993281]
[1742997910133,1.21150517,626.27,625.7,1.17993281]
[1742997910340,2.1125692,626.26,625.52,1.17993281]
[1742997910541,1.21150517,626.25,625.52,1.17993281]
[1742997910741,2.11243751,626.24,625.52,1.17993281]
[1742997910941,1.21150517,626.23,625.53,0.26294149]
[1742997911136,1.21150517,626.22,625.53,0.26294149]
[1742997911339,1.21150517,626.21,625.53,0.26294149]
[1742997911543,1.21150517,626.2,625.54,0.26293274]
[1742997911746,1.21150517,626.19,625.53,0.26293274]
[1742997911936,1.21150517,626.18,625.54,0.26293274]
[1742997912144,1.21150517,626.18,625.52,1.17993281]
[1742997912145,1.21150517,626.17,625.55,0.26294872]
[1742997912341,2.11243751,626.16,625.56,0.26294872]
[1742997912544,1.2111429,626.15,625.53,0.26294872]
[1742997912742,1.2111429,626.14,625.54,0.26294872]
[1742997912946,0.90093234,626.13,625.53,0.26294872]
[1742997913143,0.469,626.15,625.59,1.17993281]
[1742997913451,0.469,626.15,625.6,0.26294872]
[1742997914646,0.469,626.15,625.7,1.17993281]
[1742997916952,1.21128546,626.14,625.7,1.17993281]
[1742997917248,0.469,626.15,625.7,1.17993281]
[1742997918349,0.647,626.14,625.64,1.17993281]
[1742997918544,0.647,626.14,625.65,0.26291498]
[1742997919951,0.647,626.14,625.7,1.17993281]
[1742997920144,0.647,626.14,625.71,0.26291498]
[1742997921443,0.647,626.14,625.7,1.17993281]
[1742997921656,0.647,626.14,625.71,0.26288826]
[1742997921859,0.647,626.14,625.76,1.17993281]
[1742997922056,0.647,626.14,625.77,0.26288826]
[1742997924151,0.647,626.14,625.84,1.17993281]
[1742997924547,0.647,626.14,625.85,0.26284909]
[1742997926246,0.647,626.14,625.84,0.26284909]
[1742997926552,0.647,626.14,625.85,0.26284909]
[1742997926753,0.647,626.14,625.84,0.26284909]
[1742997926948,0.647,626.14,625.85,0.26284909]
[1742997927147,0.647,626.14,625.83,1.17993281]
[1742997927148,0.647,626.14,625.84,0.26284909]
[1742997927449,0.647,626.14,625.83,1.17993281]
[1742997927646,0.647,626.14,625.84,0.26285575]
[1742997927847,0.647,626.14,625.83,1.17993281]
[1742997928453,0.647,626.14,625.82,1.17993281]
[1742997928854,0.469,626.13,625.82,1.17993281]
[1742997931455,0.469,626.13,625.77,1.17993281]
[1742997934563,0.469,626.13,625.68,1.17993281]
[1742997934861,0.469,626.13,625.69,0.26284373]
[1742997935461,0.469,626.13,625.7,0.26283281]
[1742997935663,0.469,626.13,625.69,0.26283281]
[1742997935857,0.469,626.13,625.7,0.26283281]
[1742997936061,0.469,626.13,625.69,0.26283281]
[1742997936262,0.469,626.13,625.68,1.17993281]
[1742997936659,0.469,626.13,625.69,0.26280929]
[1742997936960,0.469,626.13,625.68,1.17993281]
[1742997937165,0.469,626.13,625.69,0.26279752]
[1742997937668,0.469,626.13,625.81,1.17993281]
[1742997937967,0.469,626.13,625.82,0.26279752]
[1742997939968,0.647,626.14,625.82,0.26279752]
[1742997940575,0.647,626.14,625.89,1.17993281]
[1742997940771,0.647,626.14,625.9,0.26279752]
[1742997941875,0.647,626.14,625.89,1.17993281]
[1742997941876,0.647,626.14,625.91,0.26272674]
[1742997942074,0.647,626.14,625.92,0.26272674]
[1742997942275,0.647,626.14,625.9,0.26272674]
[1742997942479,0.647,626.14,625.91,0.26272674]
[1742997942675,0.647,626.14,625.92,0.26272674]
[1742997942873,0.647,626.14,625.93,0.26272674]
[1742997943172,0.647,626.14,625.94,0.26272674]
[1742997943374,0.647,626.14,625.95,0.26272824]
[1742997943572,0.647,626.14,625.9,0.26272824]
[1742997943771,0.647,626.14,625.91,0.26272824]
[1742997943971,0.647,626.14,625.92,0.26272824]
[1742997944275,0.647,626.14,625.93,0.26272824]
[1742997944476,0.647,626.14,625.89,0.26272824]
[1742997944779,0.647,626.14,625.9,0.26272824]
[1742997944980,0.647,626.14,625.91,0.26273081]
[1742997945176,0.647,626.14,625.89,0.26273081]
[1742997945381,0.647,626.14,625.9,0.26273081]
[1742997945581,0.647,626.14,625.89,0.26273081]
[1742997945778,0.647,626.14,625.9,0.26273081]
[1742997945978,0.647,626.14,625.91,0.26273081]
[1742997946176,0.647,626.14,625.92,0.26273081]
[1742997946382,0.647,626.14,625.85,0.26273081]
[1742997946578,0.647,626.14,625.86,0.26273081]
[1742997946776,0.647,626.14,625.85,0.26273081]
[1742997946981,0.647,626.14,625.86,0.26273081]
[1742997948276,0.469,626.19,625.86,0.26273081]
[1742997949778,0.469,626.19,625.87,0.26273444]
[1742997949985,0.469,626.19,625.86,0.26273444]
[1742997950193,0.469,626.19,625.87,0.26273444]
[1742997950382,0.469,626.19,625.86,0.26273444]
[1742997950584,0.469,626.19,625.87,1.44266725]
[1742997950782,0.469,626.19,625.88,0.26273444]
[1742997952289,1.273,626.19,625.88,0.26273444]
[1742997952691,1.273,626.19,625.85,0.31956539]
[1742997952991,1.273,626.19,625.86,0.26275416]
[1742997955686,1.273,626.19,625.87,0.26280811]
[1742997955990,1.273,626.19,625.88,0.26280811]
[1742997956189,1.273,626.19,625.86,0.26280811]
[1742997956389,1.273,626.19,625.87,0.26280811]
[1742997956590,1.273,626.19,625.88,0.26280811]
[1742997956788,1.273,626.19,625.85,1.17993281]
[1742997956993,1.273,626.19,625.83,1.17993281]
[1742997957189,1.273,626.19,625.84,0.26284862]
[1742997960292,1.273,626.19,625.74,1.17993281]
[1742997962495,1.273,626.19,625.5,0.27793085]
[1742997962798,1.273,626.19,625.51,0.58260361]
[1742997962993,1.273,626.19,625.52,0.5825985]
[1742997963195,1.273,626.19,625.53,0.31972886]
[1742997963394,1.273,626.19,625.53,0.58259338]
[1742997963590,1.273,626.19,625.54,0.26286452]
[1742997964593,1.273,626.19,625.73,1.17993281]
[1742997964792,1.273,626.19,625.74,0.26286452]
[1742997966596,1.273,626.19,625.72,0.26286452]
[1742997966797,1.273,626.19,625.73,0.26286452]
[1742997966998,1.273,626.19,625.72,0.26286452]
[1742997967193,1.273,626.19,625.73,0.26286452]
[1742997967398,1.273,626.19,625.72,0.26286452]
[1742997967606,1.273,626.19,625.73,0.26286452]
[1742997967805,1.273,626.19,625.72,1.44279733]
[1742997968005,1.273,626.19,625.73,0.26286452]
[1742997969806,1.273,626.19,625.84,1.17993281]
[1742997970008,1.273,626.19,625.85,0.26286452]
[1742997971601,1.273,626.19,625.85,1.44279733]
[1742997971804,1.273,626.19,625.86,0.26286452]
[1742997973502,1.273,626.19,625.92,1.17993281]
[1742997973701,1.273,626.19,625.93,0.26286452]
[1742997975202,1.273,626.19,626.0,1.17993281]
[1742997975409,1.273,626.19,626.01,0.26286452]
[1742997975709,2.1108758,626.78,626.01,0.26286452]
[1742997975710,1.21059173,626.77,626.01,0.26286452]
[1742997975904,1.21059173,626.76,626.01,0.26286452]
[1742997976311,0.90028407,626.77,626.01,0.26286452]
[1742997976508,2.39439344,628.04,626.01,0.26286452]
[1742997977710,0.27762598,626.93,626.01,0.26286452]
[1742997978109,0.27762598,626.93,626.06,1.17993281]
[1742997978309,0.27762598,626.93,626.07,0.26286452]
[1742997978604,1.2112799,626.92,626.07,0.26286452]
[1742997978811,1.2112799,626.91,626.07,0.26286452]
[1742997979010,1.2112799,626.9,626.07,0.26286452]
[1742997979211,1.2112799,626.89,626.06,1.17993281]
[1742997979510,1.2112799,626.88,626.07,0.26275263]
[1742997979707,1.2112799,626.87,626.07,0.26275263]
[1742997979909,1.2112799,626.86,626.07,0.26275263]
[1742997980105,1.2112799,626.85,626.03,0.26275263]
[1742997980310,2.11203088,626.84,626.02,1.17993281]
[1742997980512,1.2112799,626.83,626.03,0.26276636]
[1742997980706,2.11203088,626.82,626.02,1.17993281]
[1742997980913,1.2112799,626.81,626.02,1.17993281]
[1742997981104,1.2112799,626.8,626.02,1.17993281]
[1742997981308,1.2112799,626.79,626.02,1.17993281]
[1742997981511,2.11203088,626.78,626.02,1.17993281]
[1742997981707,1.2112799,626.77,626.02,1.17993281]
[1742997981906,2.11203088,626.76,626.02,1.17993281]
[1742997982111,1.2112799,626.75,626.02,1.17993281]
[1742997982312,1.102,626.89,625.93,1.17993281]
[1742997982313,2.11203088,626.74,625.93,1.17993281]
[1742997982509,1.2112799,626.73,625.93,1.17993281]
[1742997982713,1.2112799,626.72,625.94,0.2627602]
[1742997982907,1.21217294,626.71,625.94,0.2627602]
[1742997983113,1.21217294,626.7,625.94,0.2627602]
[1742997983515,1.21217294,626.69,625.94,0.2627602]
[1742997983815,2.11361891,626.68,625.94,0.2627602]
[1742997984015,1.21217294,626.67,625.94,0.2627602]
[1742997984321,2.11361891,626.66,625.97,1.17993281]
[1742997984512,1.21217294,626.65,625.98,0.2627602]
[1742997984714,2.11361891,626.64,625.98,0.2627602]
[1742997984933,1.21217294,626.63,625.98,0.2627602]
[1742997985115,1.21243024,626.62,625.98,0.2627602]
[1742997985321,2.11387621,626.61,625.98,0.2627602]
[1742997985521,1.21243024,626.6,625.98,0.2627602]
[1742997985821,1.21243024,626.59,625.98,0.2627602]
[1742997986021,1.21243024,626.58,625.98,0.2627602]
[1742997986217,1.21243024,626.57,625.98,0.2627602]
[1742997986417,1.21243024,626.56,625.98,0.2627602]
[1742997986615,1.21243024,626.55,625.98,0.2627602]
[1742997986821,1.21243024,626.54,625.98,1.44269301]
[1742997987025,1.21257303,626.53,625.99,0.2627602]
[1742997987221,0.90144597,626.56,625.99,0.2627602]
[1742997987526,1.21265244,626.55,625.99,0.2627602]
[1742997987728,1.21265244,626.54,625.99,0.2627602]
[1742997988024,0.90180454,626.55,625.99,0.2627602]
[1742997988225,1.21269161,626.54,625.99,0.2627602]
[1742997988423,0.90180454,626.54,625.98,1.17993281]
[1742997988922,0.90180454,626.53,625.98,1.17993281]
[1742997989119,1.102,626.89,626.11,1.17993281]
[1742997989318,1.21279861,626.88,626.11,1.17993281]
[1742997989517,1.21279861,626.87,626.11,1.17993281]
[1742997989718,1.21279861,626.86,626.11,1.17993281]
[1742997989921,1.21279861,626.85,626.11,1.17993281]
[1742997990125,2.11488154,626.84,626.11,1.17993281]
[1742997990326,1.21279861,626.83,626.11,1.17993281]
[1742997990523,1.21279861,626.82,626.11,1.17993281]
[1742997990721,1.21279861,626.81,626.12,0.26263657]
[1742997990926,0.90208293,626.81,626.12,0.26263657]
[1742997991323,1.21399125,626.8,625.86,0.26263657]
[1742997991623,2.11607418,626.79,625.87,0.26263657]
[1742997991928,1.21399125,626.78,625.88,0.58218664]
[1742997992235,2.11607418,626.77,625.89,0.58218037]
[1742997992526,2.11607418,626.76,625.9,0.58217527]
[1742997992733,2.11607418,626.76,625.85,1.17993281]
[1742997992734,1.102,626.89,625.91,0.58217016]
[1742997992922,1.21344888,626.88,625.92,0.58216506]
[1742997993122,1.21344888,626.87,625.93,0.58215995]
[1742997993335,2.11547703,626.86,625.94,0.58215485]
[1742997993537,1.21344888,626.85,625.95,0.26263541]
[1742997993731,1.21344888,626.84,625.95,0.26263541]
[1742997993933,1.21344888,626.83,626.2,1.17993281]
[1742997994231,2.11547703,626.82,626.2,1.17993281]
[1742997994430,1.21344888,626.81,626.2,1.17993281]
[1742997994629,1.21344888,626.8,626.2,1.17993281]
[1742997994822,0.90202815,626.82,626.2,1.17993281]
[1742997994823,1.21344888,626.79,626.2,1.17993281]
[1742997995023,1.21344888,626.78,626.2,1.17993281]